fUST/lending_fUST_20250411
["ID","MTS","AMOUNT","RATE_DAILY","PERIOD"]
[357701130,1744354169677,-502.46647033,0.00054794,120]
[357701131,1744354169702,-500.0,0.00054794,120]
[357701132,1744354169728,-500.0,0.00054794,120]
[357701133,1744354169754,-391.8765186,0.00054794,120]
[357701134,1744354169780,-500.0,0.00054794,120]
[357701135,1744354169806,-500.0,0.00054794,120]
[357701136,1744354169831,-215.73918778,0.00054794,120]
[357701137,1744354169855,-510.44021432,0.00054794,120]
[357701138,1744354169879,-500.0,0.00054794,120]
[357701139,1744354169906,-500.0,0.00054794,120]
[357701140,1744354169932,-500.0,0.00054794,120]
[357701141,1744354169958,-500.0,0.00054794,120]
[357701142,1744354169984,-500.0,0.00054794,120]
[357701143,1744354170011,-1000.0,0.00054794,120]
[357701144,1744354170036,-506.13952169,0.00054794,120]
[357701145,1744354170061,-580.0,0.00056,120]
[357701146,1744354170087,-580.0,0.00058,120]
[357701147,1744354170113,-580.0,0.0006,120]
[357701148,1744354170150,-500.0,0.00060273,120]
[357701149,1744354170179,-500.0,0.00060273,120]
[357701150,1744354170205,-500.0,0.00060273,120]
[357701151,1744354170229,-500.0,0.00060273,120]
[357701152,1744354170254,-500.0,0.00060273,120]
[357701153,1744354170281,-500.0,0.00060273,120]
[357701154,1744354170308,-500.0,0.00060273,120]
[357701155,1744354170335,-500.0,0.00060273,120]
[357701156,1744354170361,-181.39891056,0.00060273,120]
[357701157,1744354170387,-172.20301252,0.00060273,120]
[357701158,1744354170412,-1395.71,0.00060273,120]
[357701159,1744354170439,-500.0,0.00060273,120]
[357701160,1744354170464,-487.65899553,0.00060273,120]
[357701161,1744354170491,-500.0,0.00060273,120]
[357701162,1744354170521,-500.0,0.00060273,120]
[357701163,1744354170548,-500.0,0.00060273,120]
[357701164,1744354170574,-511.49508118,0.00060273,120]
[357701165,1744354170601,-500.0,0.00060273,120]
[357701166,1744354170627,-500.0,0.00060273,120]
[357701167,1744354170653,-520.70876815,0.00060273,120]
[357701168,1744354170680,-829.89,0.00060273,120]
[357701169,1744354170706,-500.0,0.00060273,120]
[357701170,1744354170733,-3645.79,0.00060273,120]
[357701171,1744354170763,-500.0,0.00060273,120]
[357701172,1744354170789,-500.0,0.00060273,120]
[357701173,1744354170815,-454.46306076,0.00060273,120]
[357701174,1744354170840,-500.0,0.00060273,120]
[357701175,1744354170951,-377.51237496,0.00060273,120]
[357701176,1744354170979,-413.34014107,0.00060273,120]
[357701177,1744354171004,-500.0,0.00060273,120]
[357701178,1744354171028,-500.0,0.00060273,60]
[357701179,1744354171054,-500.0,0.00060273,120]
[357701180,1744354171078,-500.0,0.00060273,120]
[357701181,1744354171103,-633.82206784,0.00060273,120]
[357701182,1744354171127,-266.28392966,0.00060273,120]
[357701183,1744354171152,-500.0,0.00060273,120]
[357701184,1744354171177,-282.79899483,0.00060273,120]
[357701185,1744354171201,-373.73806723,0.00060273,120]
[357701186,1744354171226,-500.0,0.00060273,120]
[357701187,1744354171251,-500.0,0.00060273,120]
[357701188,1744354171275,-500.0,0.00060273,120]
[357701189,1744354171299,-1000.0,0.00060273,120]
[357701190,1744354171323,-151.0,0.00060959,120]
[357701191,1744354171348,-580.0,0.00062,120]
[357701192,1744354171372,-210.0,0.00064,120]
[357701193,1744354171397,-210.0,0.00064,120]
[357701194,1744354171422,-200.0,0.00064,120]
[357701195,1744354171451,-580.0,0.00064,120]
[357701196,1744354171476,-500.0,0.00065,120]
[357701197,1744354171501,-500.0,0.000657,120]
[357701198,1744354171527,-500.0,0.000657,120]
[357701199,1744354171552,-500.0,0.000657,120]
[357701200,1744354171576,-500.0,0.00065753,120]
[357701201,1744354171601,-619.67954487,0.00065753,120]
[357701202,1744354171625,-500.0,0.00065753,120]
[357701203,1744354171650,-504.53513922,0.00065753,120]
[357701204,1744354171674,-500.0,0.00065753,120]
[357701205,1744354171699,-500.0,0.00065753,120]
[357701206,1744354171724,-500.0,0.00065753,120]
[357701207,1744354171751,-500.0,0.00065753,120]
[357701208,1744354171776,-286.40765645,0.00065753,120]
[357701209,1744354171801,-1395.71,0.00065753,120]
[357701210,1744354171825,-500.0,0.00065753,120]
[357701211,1744354171849,-500.00062192,0.00065753,120]
[357701212,1744354171874,-500.0,0.00065753,120]
[357701213,1744354171899,-500.0,0.00065753,120]
[357701214,1744354171924,-500.0,0.00065753,120]
[357701215,1744354171948,-500.0,0.00065753,120]
[357701216,1744354171973,-829.89,0.00065753,120]
[357701217,1744354172000,-500.0,0.00065753,120]
[357701218,1744354172025,-3645.79,0.00065753,120]
[357701219,1744354172050,-500.0,0.00065753,120]
[357701220,1744354172076,-500.0,0.00065753,120]
[357701221,1744354172100,-500.0,0.00065753,120]
[357701222,1744354172125,-500.0,0.00065753,120]
[357701223,1744354172150,-335.76212588,0.00065753,60]
[357701224,1744354172175,-288.9576093,0.00065753,120]
[357701225,1744354172202,-152.22428825,0.00065753,120]
[357701226,1744354172227,-500.0,0.00065753,120]
[357701227,1744354172252,-500.0,0.00065753,120]
[357701228,1744354172278,-348.36549784,0.00065753,120]
[357701229,1744354172302,-500.0,0.00065753,120]
[357701230,1744354172326,-1000.0,0.00065753,120]
[357701231,1744354172351,-874.12451348,0.00066866,33]
[357701232,1744354172376,-166.0,0.00067,120]
[357701233,1744354172401,-267.90461929,0.00068492,120]
[357701234,1744354172427,-300.0,0.00068493,120]
[357701235,1744354172453,-151.0,0.00068493,59]
[357701236,1744354172478,-151.0,0.00068493,59]
[357701237,1744354172504,-151.0,0.00068493,59]
[357701238,1744354172529,-151.0,0.00068493,59]
[357701239,1744354172554,-151.0,0.00068493,59]
[357701240,1744354172578,-153.53791146,0.00068493,59]
[357701241,1744354172603,-215.0738,0.00068493,59]
[357701242,1744354172629,-200.0,0.00068493,59]
[357701243,1744354172654,-223.0315306,0.00068493,59]
[357701244,1744354172679,-207.4,0.00068493,59]
[357701245,1744354172704,-231.28369723,0.00068493,59]
[357701246,1744354172729,-239.84119403,0.00068493,59]
[357701247,1744354172753,-215.0738,0.00068493,59]
[357701248,1744354172778,-248.71531821,0.00068493,59]
[357701249,1744354172802,-223.0315306,0.00068493,59]
[357701250,1744354172827,-257.91778498,0.00068493,59]
[357701251,1744354172851,-231.28369723,0.00068493,59]
[357701252,1744354172876,-267.46074303,0.00068493,59]
[357701253,1744354172978,-239.84119403,0.00068493,59]
[357701254,1744354173008,-277.35679052,0.00068493,59]
[357701255,1744354173034,-248.71531821,0.00068493,59]
[357701256,1744354173060,-287.61899177,0.00068493,59]
[357701257,1744354173086,-257.91778498,0.00068493,59]
[357701258,1744354173111,-298.26089446,0.00068493,59]
[357701259,1744354173136,-267.46074303,0.00068493,59]
[357701260,1744354173162,-309.29654756,0.00068493,59]
[357701261,1744354173188,-277.35679052,0.00068493,59]
[357701262,1744354173213,-320.74051982,0.00068493,59]
[357701263,1744354173238,-151.0,0.00068493,120]
[357701264,1744354173265,-151.0,0.00068493,120]
[357701265,1744354173290,-151.0,0.00068493,120]
[357701266,1744354173314,-297.0392009,0.00068493,120]
[357701267,1744354173339,-883176.52372058,0.00068493,59]
[357701268,1744354179723,-151.0,0.00047595,120]
[357701269,1744354179751,-500.0,0.00054794,120]
[357701270,1744354179777,-500.0,0.00054794,120]
[357701271,1744354179802,-500.0,0.00060273,120]
[357701272,1744354179827,-500.0,0.00060273,120]
[357701273,1744354179853,-237.23040083,0.00065753,120]
[357701274,1744354179879,-500.0,0.00065753,120]
[357701275,1744354179905,-997111.76959917,0.00068493,59]
[357701276,1744354183822,-1000000.0,0.00068493,59]
[357701277,1744354186921,-1827.93,0.00054794,120]
[357701278,1744354186948,-1827.93,0.00060273,120]
[357701279,1744354186973,-1827.93,0.00065753,120]
[357701281,1744354186998,-994516.21,0.00068493,59]
[357701283,1744354188481,-1000000.0,0.00068493,59]
[357701284,1744354189822,-132195.49668025,0.00068493,59]
[357701289,1744354232611,-500.0,0.00019996,2]
[357701290,1744354232621,-209.80949069,0.00019996,2]
[357701297,1744354232737,-290.19050931,0.00019996,2]
[357701298,1744354232746,-92.30949069,0.00019996,2]
[357701299,1744354232758,-407.69050931,0.00019996,2]
[357701300,1744354232767,-550.3116554,0.00019996,2]
[357701301,1744354232777,-335.92908674,0.00019996,2]
[357701302,1744354232786,-1000.0,0.0002,7]
[357701303,1744354232795,-250.0,0.00022147,2]
[357701304,1744354232804,-1658.09763859,0.00022354,2]
[357701306,1744354232816,-1542.06304489,0.00022354,2]
[357701309,1744354232827,-67.22913822,0.00022354,2]
[357701311,1744354232836,-250.0,0.00022669,2]
[357701313,1744354232846,-200.7064375,0.0002277,2]
[357701315,1744354232856,-123.11156055,0.00022771,2]
[357701336,1744354238853,-33.89843945,0.00022771,2]
[357701338,1744354238864,-1372.66500102,0.00022771,3]
[357701342,1744354238904,-14657.85485926,0.00022771,3]
[357701344,1744354238918,-874.12451375,0.000229,4]
[357701346,1744354238928,-159.466177,0.00023317,2]
[357701348,1744354238939,-159.466177,0.00023434,2]
[357701350,1744354238950,-500.0,0.00024167,2]
[357701352,1744354238965,-19197.6170224,0.00024487,2]
[357701355,1744354238982,-8145.98135138,0.00024487,2]
[357701391,1744354241008,-416.49359889,0.00024487,2]
[357703827,1744355000766,-156.49085179,0.00040932,120]
[357703828,1744355000812,-500.0,0.00041095,120]
[357703829,1744355000974,-500.0,0.00041095,120]
[357703830,1744355001029,-500.0,0.00041095,120]
[357703831,1744355001077,-500.0,0.00041095,120]
[357703832,1744355001122,-500.0,0.00041095,120]
[357703833,1744355001165,-500.0,0.00041095,120]
[357703834,1744355001213,-500.0,0.00041095,120]
[357703835,1744355001257,-500.0,0.00041095,120]
[357703836,1744355001301,-500.0,0.00041095,120]
[357703837,1744355001344,-587.74122607,0.00041095,120]
[357703838,1744355001388,-200.0,0.000428,90]
[357703839,1744355001438,-151.0,0.00043509,120]
[357703840,1744355001485,-151.0,0.00043509,120]
[357703841,1744355001529,-200.0,0.000442,120]
[357703842,1744355001573,-373.40249,0.000442,120]
[357703843,1744355001617,-151.0,0.00045,120]
[357703844,1744355001662,-151.0,0.00045,120]
[357703845,1744355001711,-1005.446078,0.00045,60]
[357703846,1744355001759,-253.7,0.000454,120]
[357703847,1744355001806,-158.0,0.00046,120]
[357703848,1744355001850,-464.0,0.00046,120]
[357703849,1744355001894,-168.65209897,0.00046027,120]
[357703850,1744355001938,-200.0,0.000467,120]
[357703851,1744355001985,-158.0,0.00048,120]
[357703852,1744355002029,-464.0,0.00048,120]
[357703853,1744355002074,-780.29460798,0.000488,120]
[357703854,1744355002118,-200.0,0.000492,120]
[357703855,1744355002162,-359.33886232,0.00049999,120]
[357703856,1744355002207,-289.35845155,0.00049999,120]
[357703857,1744355002252,-443.77871175,0.00049999,120]
[357703858,1744355002298,-203.24203999,0.00049999,120]
[357703859,1744355002343,-158.0,0.0005,120]
[357703860,1744355002388,-464.0,0.0005,120]
[357703861,1744355002434,-154.476765,0.00051,85]
[357703862,1744355002479,-280.27011,0.000517,120]
[357703863,1744355002523,-151.0,0.00051918,120]
[357703864,1744355002567,-158.0,0.00052,120]
[357703865,1744355002611,-464.0,0.00052,120]
[357703866,1744355002657,-158.0,0.00054,120]
[357703867,1744355002705,-464.0,0.00054,120]
[357703868,1744355002753,-156.66,0.00054794,120]
[357703869,1744355002800,-673.67,0.00054794,120]
[357703870,1744355002849,-503.08909647,0.00054794,120]
[357703871,1744355002897,-509.26975001,0.00054794,120]
[357703872,1744355002941,-503.88566808,0.00054794,120]
[357703873,1744355002988,-521.96813059,0.00054794,120]
[357703874,1744355003038,-501.23382621,0.00054794,120]
[357703875,1744355003083,-504.60362178,0.00054794,120]
[357703876,1744355003130,-411.61306969,0.00054794,120]
[357703877,1744355003176,-504.23522256,0.00054794,120]
[357703878,1744355003223,-504.23140008,0.00054794,120]
[357703879,1744355003267,-502.59967156,0.00054794,120]
[357703880,1744355003312,-500.0,0.00054794,120]
[357703881,1744355003361,-1079.2,0.00054794,120]
[357703882,1744355003406,-508.19493792,0.00054794,120]
[357703883,1744355003450,-504.94381667,0.00054794,120]
[357703884,1744355003496,-500.0,0.00054794,120]
[357703885,1744355003541,-501.18920555,0.00054794,120]
[357703886,1744355003587,-606.25146254,0.00054794,120]
[357703887,1744355003631,-507.13282849,0.00054794,120]
[357703888,1744355003679,-501.14133095,0.00054794,120]
[357703889,1744355003728,-500.0,0.00054794,120]
[357703890,1744355003861,-175.77643902,0.00054794,120]
[357703891,1744355003909,-502.4159637,0.00054794,120]
[357703892,1744355003954,-509.56992507,0.00054794,120]
[357703893,1744355004000,-509.03319156,0.00054794,120]
[357703894,1744355004048,-503.36588745,0.00054794,120]
[357703895,1744355004090,-502.84718193,0.00054794,120]
[357703896,1744355004134,-502.58951876,0.00054794,120]
[357703897,1744355004177,-502.27296439,0.00054794,120]
[357703898,1744355004218,-503.1632607,0.00054794,120]
[357703899,1744355004260,-503.96755503,0.00054794,120]
[357703900,1744355004303,-501.07668123,0.00054794,120]
[357703901,1744355004347,-500.0,0.00054794,120]
[357703902,1744355004391,-509.7511759,0.00054794,120]
[357703903,1744355004433,-500.0,0.00054794,120]
[357703904,1744355004476,-506.11938291,0.00054794,120]
[357703905,1744355004519,-500.0,0.00054794,120]
[357703906,1744355004560,-503.42573548,0.00054794,120]
[357703907,1744355004603,-590.68916818,0.00054794,120]
[357703908,1744355004646,-507.8856113,0.00054794,120]
[357703909,1744355004692,-500.86173145,0.00054794,120]
[357703910,1744355004737,-501.69390175,0.00054794,120]
[357703911,1744355004783,-500.0,0.00054794,120]
[357703912,1744355004826,-359.20337823,0.00054794,120]
[357703913,1744355004871,-501.6051451,0.00054794,120]
[357703914,1744355004924,-500.0,0.00054794,120]
[357703915,1744355004978,-505.07252549,0.00054794,120]
[357703916,1744355005025,-521.71508233,0.00054794,120]
[357703917,1744355005072,-202.37084691,0.00054794,120]
[357703918,1744355005119,-508.70981236,0.00054794,120]
[357703919,1744355005165,-506.95086286,0.00054794,120]
[357703920,1744355005210,-500.0,0.00054794,120]
[357703921,1744355005256,-501.99294122,0.00054794,120]
[357703922,1744355005303,-501.3927923,0.00054794,120]
[357703923,1744355005349,-505.63650124,0.00054794,120]
[357703924,1744355005397,-500.0,0.00054794,120]
[357703925,1744355005443,-503.63470795,0.00054794,120]
[357703926,1744355005492,-504.97448974,0.00054794,120]
[357703927,1744355005538,-500.0,0.00054794,120]
[357703928,1744355005582,-500.0,0.00054794,120]
[357703929,1744355005628,-500.0,0.00054794,120]
[357703930,1744355005674,-515.61725565,0.00054794,120]
[357703931,1744355005723,-506.90570213,0.00054794,120]
[357703932,1744355005767,-507.1982017,0.00054794,120]
[357703933,1744355005812,-222.77517326,0.00054794,120]
[357703934,1744355005856,-500.0,0.00054794,120]
[357703935,1744355005901,-500.0,0.00054794,120]
[357703936,1744355005954,-502.5841943,0.00054794,120]
[357703937,1744355006008,-500.0,0.00054794,120]
[357703938,1744355006059,-548.26528635,0.00054794,120]
[357703939,1744355006110,-504.3395573,0.00054794,120]
[357703940,1744355006161,-500.0,0.00054794,120]
[357703941,1744355006210,-500.0,0.00054794,120]
[357703942,1744355006253,-500.0,0.00054794,120]
[357703943,1744355006304,-503.41397777,0.00054794,120]
[357703944,1744355006358,-500.0,0.00054794,120]
[357703945,1744355006401,-500.0,0.00054794,120]
[357703946,1744355006445,-500.0,0.00054794,120]
[357703947,1744355006497,-500.0,0.00054794,120]
[357703948,1744355006548,-717.94,0.00054794,120]
[357703949,1744355006597,-717.94,0.00054794,120]
[357703950,1744355006743,-717.94,0.00054794,120]
[357703951,1744355006796,-717.94,0.00054794,120]
[357703952,1744355006842,-717.94,0.00054794,120]
[357703953,1744355006897,-717.94,0.00054794,120]
[357703954,1744355006956,-504.40270177,0.00054794,120]
[357703955,1744355007010,-717.94,0.00054794,120]
[357703956,1744355007063,-717.94,0.00054794,120]
[357703957,1744355007113,-717.94,0.00054794,120]
[357703958,1744355007165,-500.0,0.00054794,120]
[357703959,1744355007216,-717.94,0.00054794,120]
[357703960,1744355007260,-717.94,0.00054794,120]
[357703961,1744355007303,-717.94,0.00054794,120]
[357703962,1744355007345,-717.94,0.00054794,120]
[357703963,1744355007387,-717.94,0.00054794,120]
[357703964,1744355007429,-717.94,0.00054794,120]
[357703965,1744355007473,-717.94,0.00054794,120]
[357703966,1744355007516,-717.94,0.00054794,120]
[357703967,1744355007560,-717.94,0.00054794,120]
[357703968,1744355007602,-717.94,0.00054794,120]
[357703969,1744355007646,-615.93719495,0.00054794,120]
[357703970,1744355007691,-717.94,0.00054794,120]
[357703971,1744355007734,-717.94,0.00054794,120]
[357703972,1744355007778,-717.94,0.00054794,120]
[357703973,1744355007821,-717.94,0.00054794,120]
[357703974,1744355007864,-718.15474446,0.00054794,120]
[357703975,1744355007907,-500.0,0.00054794,120]
[357703976,1744355007950,-500.0,0.00054794,120]
[357703977,1744355007992,-500.0,0.00054794,120]
[357703978,1744355008039,-506.65823046,0.00054794,120]
[357703979,1744355008085,-500.0,0.00054794,120]
[357703980,1744355008130,-507.41513493,0.00054794,120]
[357703981,1744355008174,-500.0,0.00054794,120]
[357703982,1744355008221,-500.0,0.00054794,120]
[357703983,1744355008267,-508.68277493,0.00054794,120]
[357703984,1744355008315,-500.0,0.00054794,120]
[357703985,1744355008360,-500.0,0.00054794,120]
[357703986,1744355008405,-503.05660617,0.00054794,120]
[357703987,1744355008450,-599.95561233,0.00054794,120]
[357703988,1744355008494,-500.0,0.00054794,120]
[357703989,1744355008539,-546.90794685,0.00054794,120]
[357703990,1744355008581,-530.82901336,0.00054794,120]
[357703991,1744355008626,-500.0,0.00054794,120]
[357703992,1744355008670,-500.56116045,0.00054794,120]
[357703993,1744355008716,-497.27014936,0.00054794,120]
[357703994,1744355008762,-500.0,0.00054794,120]
[357703995,1744355008810,-500.5808371,0.00054794,120]
[357703996,1744355008855,-504.10259998,0.00054794,120]
[357703997,1744355008900,-500.0,0.00054794,120]
[357703998,1744355008944,-507.60845624,0.00054794,120]
[357703999,1744355008988,-536.06380622,0.00054794,120]
[357704000,1744355009030,-504.38152559,0.00054794,120]
[357704001,1744355009072,-500.0,0.00054794,120]
[357704002,1744355009115,-639.73453822,0.00054794,120]
[357704003,1744355009157,-513.89317935,0.00054794,120]
[357704004,1744355009201,-503.17693888,0.00054794,120]
[357704005,1744355009244,-505.31656159,0.00054794,120]
[357704006,1744355009289,-511.0709679,0.00054794,120]
[357704007,1744355009332,-500.40264115,0.00054794,120]
[357704008,1744355009374,-575.88266314,0.00054794,120]
[357704009,1744355009497,-524.66927786,0.00054794,120]
[357704010,1744355009541,-500.0,0.00054794,120]
[357704011,1744355009583,-500.0,0.00054794,120]
[357704012,1744355009627,-363.54173049,0.00054794,120]
[357704013,1744355009674,-500.0,0.00054794,120]
[357704014,1744355009722,-545.65932824,0.00054794,120]
[357704015,1744355009772,-504.53980964,0.00054794,120]
[357704016,1744355009820,-500.0,0.00054794,120]
[357704017,1744355009866,-503.42219979,0.00054794,120]
[357704018,1744355009912,-507.81393079,0.00054794,120]
[357704019,1744355009957,-514.40300949,0.00054794,120]
[357704020,1744355010002,-526.45082168,0.00054794,120]
[357704021,1744355010048,-500.0,0.00054794,120]
[357704022,1744355010093,-250.80497781,0.00054794,120]
[357704023,1744355010136,-500.46124896,0.00054794,120]
[357704024,1744355010178,-570.51619212,0.00054794,120]
[357704025,1744355010220,-502.54663884,0.00054794,120]
[357704026,1744355010263,-504.37048024,0.00054794,120]
[357704027,1744355010306,-504.64807911,0.00054794,120]
[357704028,1744355010349,-509.61953386,0.00054794,120]
[357704029,1744355010391,-645.35034923,0.00054794,120]
[357704030,1744355010433,-503.76760382,0.00054794,120]
[357704031,1744355010476,-501.02442078,0.00054794,120]
[357704032,1744355010517,-504.55247324,0.00054794,120]
[357704033,1744355010560,-508.34178786,0.00054794,120]
[357704034,1744355010602,-500.0,0.00054794,120]
[357704035,1744355010647,-458.9802694,0.00054794,120]
[357704036,1744355010692,-500.0,0.00054794,120]
[357704037,1744355010738,-512.19519285,0.00054794,120]
[357704038,1744355010780,-545.16939746,0.00054794,120]
[357704039,1744355010825,-509.27151077,0.00054794,120]
[357704040,1744355010872,-526.90329844,0.00054794,120]
[357704041,1744355010923,-510.25165948,0.00054794,120]
[357704042,1744355010974,-513.71071668,0.00054794,120]
[357704043,1744355011024,-500.0,0.00054794,120]
[357704044,1744355011074,-500.70681952,0.00054794,120]
[357704045,1744355011122,-504.39860522,0.00054794,120]
[357704046,1744355011173,-500.0,0.00054794,120]
[357704047,1744355011221,-500.0,0.00054794,120]
[357704048,1744355011269,-501.83114411,0.00054794,120]
[357704049,1744355011316,-500.0,0.00054794,120]
[357704050,1744355011361,-500.0,0.00054794,120]
[357704051,1744355011407,-500.0,0.00054794,120]
[357704052,1744355011453,-511.99682256,0.00054794,120]
[357704053,1744355011498,-611.84713364,0.00054794,120]
[357704054,1744355011541,-503.662083,0.00054794,120]
[357704055,1744355011584,-503.4667919,0.00054794,120]
[357704056,1744355011630,-505.65477279,0.00054794,120]
[357704057,1744355011675,-591.80565726,0.00054794,120]
[357704058,1744355011723,-500.0,0.00054794,120]
[357704059,1744355011770,-503.71520095,0.00054794,120]
[357704060,1744355011815,-503.34187706,0.00054794,120]
[357704061,1744355011861,-500.0,0.00054794,120]
[357704062,1744355011906,-500.0,0.00054794,120]
[357704063,1744355011950,-500.0,0.00054794,120]
[357704064,1744355011995,-500.0,0.00054794,120]
[357704065,1744355012117,-500.0,0.00054794,120]
[357704066,1744355012161,-500.0,0.00054794,120]
[357704067,1744355012205,-581.07071618,0.00054794,120]
[357704068,1744355012248,-500.0,0.00054794,120]
[357704069,1744355012291,-423.65675759,0.00054794,120]
[357704070,1744355012333,-505.77681805,0.00054794,120]
[357704071,1744355012376,-500.0,0.00054794,120]
[357704072,1744355012419,-500.0,0.00054794,120]
[357704073,1744355012462,-500.0,0.00054794,120]
[357704074,1744355012503,-501.00011976,0.00054794,120]
[357704075,1744355012545,-506.72156597,0.00054794,120]
[357704076,1744355012588,-514.95323848,0.00054794,120]
[357704077,1744355012630,-500.0,0.00054794,120]
[357704078,1744355012673,-500.0,0.00054794,120]
[357704079,1744355012715,-500.0,0.00054794,120]
[357704080,1744355012758,-500.0,0.00054794,120]
[357704081,1744355012800,-500.0,0.00054794,120]
[357704082,1744355012848,-500.0,0.00054794,120]
[357704083,1744355012892,-502.57776975,0.00054794,120]
[357704084,1744355012934,-500.0,0.00054794,120]
[357704085,1744355012976,-500.0,0.00054794,120]
[357704086,1744355013017,-500.61299501,0.00054794,120]
[357704087,1744355013061,-504.31767703,0.00054794,120]
[357704088,1744355013106,-500.0,0.00054794,120]
[357704089,1744355013150,-486.44567268,0.00054794,120]
[357704090,1744355013193,-501.74255302,0.00054794,120]
[357704091,1744355013237,-500.0,0.00054794,120]
[357704092,1744355013282,-501.2719814,0.00054794,120]
[357704093,1744355013327,-545.93950497,0.00054794,120]
[357704094,1744355013371,-500.0,0.00054794,120]
[357704095,1744355013418,-195.82251143,0.00054794,120]
[357704096,1744355013465,-502.60124603,0.00054794,120]
[357704097,1744355013509,-500.0,0.00054794,120]
[357704098,1744355013555,-500.0,0.00054794,120]
[357704099,1744355013597,-501.77917577,0.00054794,120]
[357704100,1744355013643,-502.19948603,0.00054794,120]
[357704101,1744355013689,-511.34107535,0.00054794,120]
[357704102,1744355013733,-501.59471704,0.00054794,120]
[357704103,1744355013778,-500.0,0.00054794,120]
[357704104,1744355013823,-500.0,0.00054794,120]
[357704105,1744355013866,-500.0,0.00054794,120]
[357704106,1744355013911,-508.54108634,0.00054794,120]
[357704107,1744355013953,-503.23975051,0.00054794,120]
[357704108,1744355013996,-500.0,0.00054794,120]
[357704109,1744355014039,-500.0,0.00054794,120]
[357704110,1744355014081,-500.0,0.00054794,120]
[357704111,1744355014124,-475.88871508,0.00054794,120]
[357704112,1744355014167,-504.98818829,0.00054794,120]
[357704113,1744355014209,-500.0,0.00054794,120]
[357704114,1744355014250,-502.12986264,0.00054794,120]
[357704115,1744355014292,-500.0,0.00054794,120]
[357704116,1744355014333,-500.0,0.00054794,120]
[357704117,1744355014375,-500.0,0.00054794,120]
[357704118,1744355014418,-500.0,0.00054794,120]
[357704119,1744355014461,-500.0,0.00054794,120]
[357704120,1744355014581,-500.0,0.00054794,120]
[357704121,1744355014624,-507.1342585,0.00054794,120]
[357704122,1744355014671,-557.55,0.00054794,120]
[357704123,1744355014715,-500.0,0.00054794,120]
[357704124,1744355014759,-500.54581878,0.00054794,120]
[357704125,1744355014803,-500.0,0.00054794,120]
[357704126,1744355014847,-267.12581674,0.00054794,120]
[357704127,1744355014896,-500.0,0.00054794,120]
[357704128,1744355014939,-500.0,0.00054794,120]
[357704129,1744355014985,-501.0307143,0.00054794,120]
[357704130,1744355015027,-500.0,0.00054794,120]
[357704131,1744355015071,-500.0,0.00054794,120]
[357704132,1744355015112,-500.0,0.00054794,120]
[357704133,1744355015154,-500.0,0.00054794,120]
[357704134,1744355015195,-500.0,0.00054794,120]
[357704135,1744355015238,-500.0,0.00054794,120]
[357704136,1744355015282,-500.0,0.00054794,120]
[357704137,1744355015324,-503.21207535,0.00054794,120]
[357704138,1744355015368,-500.0,0.00054794,120]
[357704139,1744355015413,-176.96172825,0.00054794,120]
[357704140,1744355015456,-500.0,0.00054794,120]
[357704141,1744355015500,-500.0,0.00054794,120]
[357704142,1744355015543,-500.0,0.00054794,120]
[357704143,1744355015585,-500.0,0.00054794,120]
[357704144,1744355015629,-500.0,0.00054794,120]
[357704145,1744355015673,-500.0,0.00054794,120]
[357704146,1744355015721,-160.76815672,0.00054794,120]
[357704147,1744355015769,-500.0,0.00054794,120]
[357704148,1744355015814,-522.07319056,0.00054794,120]